[Event "13th All African Mixed Team Rapid-ch 202"]
[Site "Accra"]
[Date "2024.03.09"]
[Round "1.1"]
[White "Amin, Bassem"]
[Black "Wanyama, Harold"]
[Result "1-0"]
[ECO "C00"]
[WhiteElo "2670"]
[BlackElo "2226"]
[Annotator "TA"]
[PlyCount "59"]
[EventDate "2024.03.07"]
[EventType "rapid"]
[EventCountry "GHA"]
[SourceTitle "playchess.com"]
[Source "ChessBase"]
[SourceQuality "1"]
[TimeControl "900+10"]

{[%evp 10,59,0,-16,0,12,43,29,36,37,51,35,33,24,32,35,37,49,45,18,130,139,403,381,486,490,478,483,766,882,879,859,1121,1112,1083,1076,908,903,840,791,1101,1029,1058,1050,1042,1030,1375,1295,1353,1269,1637,1572]} 1. e4 {[%emt 0:00:03]} c5 {[%emt 0:00:04]} 2. Nf3 {[%emt 0:00:03]} e6 {[%emt 0:00:05]} 3. d3 {[%emt 0:00:01][%cal Bd2d3,Bd3e4,Be4e5][%mdl 32]} Nc6 {[%emt 0:00:05]} 4. g3 {[%emt 0:00:02]} Nf6 {[%emt 0:00:11][%cal Bg8f6,Bf6d5,Bd5b6][%mdl 32]} 5. Bg2 {[%emt 0:00:02]} d5 {[%emt 0:00:04]} 6. Nbd2 {[%emt 0:00:03]} Rb8 {[%emt 0:00:09]} 7. O-O {[%emt 0:00:07]} dxe4 {[%emt 0:00:04]} 8. dxe4 {[%emt 0:00:03]} b5 {[%emt 0:00:12][%cal Bb7b5,Bb5b4][%mdl 32] White has an edge.} 9. e5 {[%emt 0:00:26]} Nd5 {[%emt 0:00:06]} 10. c3 {[%emt 0:01:12][%cal Bc2c3,Bc3c4][%mdl 32]} Be7 {[%emt 0:00:15]} 11. a4 {[%emt 0:00:39][%cal Ba2a4,Ba4a5][%mdl 32] And now axb5 would win.} b4 {[%emt 0:00:15]} 12. c4 {[%emt 0:00:06]} Nb6 {[%emt 0:00:11]} 13. Qe2 {[%emt 0:04:21]} O-O {[%emt 0:00:52]} 14. Ne4 {[%emt 0:00:21]} Nd4 {[%emt 0:00:58]} (14... Ba6 $11 {remains equal.} 15. b3 Na5) 15. Nxd4 $16 {[%emt 0:00:07]} Qxd4 {[%emt 0:00:20][%mdl 8192] Loses the game.} (15... cxd4 $16 16. Rd1 Qc7) 16. a5 $18 {[%emt 0:00:19]} Qxc4 {[%emt 0:00:30] [#]} 17. Qg4 {[%emt 0:00:02] White is clearly winning.} h5 {[%emt 0:00:36]} 18. Qf4 {[%emt 0:00:11]} ({Much less strong is} 18. Qxh5 Nd5 19. Bg5 Bb7) 18... g5 {[%emt 0:06:20]} (18... Qd4 $142 19. axb6 axb6) 19. Nf6+ {[%emt 0:00:09]} ({Worse is} 19. Nxg5 Qxf4 20. gxf4 Nc4 $11) 19... Bxf6 {[%emt 0:00:03]} 20. Qxf6 {[%emt 0:00:02]} Nd7 {[%emt 0:00:51]} 21. Qxg5+ {[%emt 0:00:04]} Kh7 {[%emt 0:00:01]} 22. Qxh5+ {[%emt 0:00:05]} Kg8 {[%emt 0:00:13]} 23. Bh6 {[%emt 0:00:05] [#] White wants to mate with Qg5+. A strong pair of Bishops.} Qd3 {[%emt 0:00:14]} 24. Qh4 {[%emt 0:01:19] Black must now prevent Be4.} Nxe5 {[%emt 0:03:20]} 25. Qf6 {[%emt 0:02:07]} Qg6 {[%emt 0:00:13] Prevents Qg7+.} 26. Qxe5 {[%emt 0:00:02]} Qxh6 {[%emt 0:00:01]} 27. Qxb8 {[%emt 0:00:02]} Ba6 {[%emt 0:00:00]} 28. Qxa7 {[%emt 0:00:37]} Bxf1 {[%emt 0:00:04]} 29. Rxf1 {[%emt 0:00:22]} Qd2 {[%emt 0:00:36]} 30. Qxc5 {[%emt 0:00:09] Weighted Error Value: White=0.04 (flawless) /Black=0.57.  Loses game:     	---       	Black=1      Mistake:       	---       	Black=2      Inaccurate:     	White=1     	Black=1      OK:         	White=6     	Black=6      Best:        	White=3     	Black=1} 1-0

[Event "13th All African Mixed Team Rapid-ch 202"]
[Site "Accra"]
[Date "2024.03.09"]
[Round "1.2"]
[White "Nakabo, Peninah"]
[Black "Wafa, Shahenda"]
[Result "0-1"]
[ECO "B22"]
[WhiteElo "1836"]
[BlackElo "2083"]
[Annotator "RC"]
[PlyCount "55"]
[EventDate "2024.03.07"]
[EventType "rapid"]
[EventCountry "GHA"]
[SourceTitle "playchess.com"]
[Source "ChessBase"]
[SourceQuality "1"]
[TimeControl "900+10"]

1. e4 {[%emt 0:00:02]} c5 {[%emt 0:00:03]} 2. Nf3 {[%emt 0:00:03]} Nc6 {[%emt 0:00:03]} 3. c3 {[%emt 0:00:03]} d5 {[%emt 0:00:05]} 4. exd5 {[%emt 0:00:03]} Qxd5 {[%emt 0:00:03]} 5. d4 {[%emt 0:00:04]} Nf6 {[%emt 0:00:14]} 6. Bb5 {[%emt 0:00:35]} Bg4 {[%emt 0:01:43]} 7. Nbd2 {[%emt 0:01:21]} cxd4 {[%emt 0:01:38]} 8. Bxc6+ {[%emt 0:00:09]} Qxc6 {[%emt 0:00:23]} 9. cxd4 {[%emt 0:00:06]} Qe6+ {[%emt 0:00:30]} 10. Qe2 {[%emt 0:00:18]} Qxe2+ {[%emt 0:00:14]} 11. Kxe2 {[%emt 0:00:03]} O-O-O {[%emt 0:01:11]} 12. Nb3 {[%emt 0:00:45]} Nd5 {[%emt 0:01:39]} 13. Bd2 {[%emt 0:00:37]} e6 {[%emt 0:00:43]} 14. Rhc1+ {[%emt 0:00:10]} Kb8 {[%emt 0:00:08]} 15. h3 {[%emt 0:00:41]} Bh5 {[%emt 0:00:15]} 16. g4 {[%emt 0:00:30]} Bg6 {[%emt 0:00:11]} 17. Ne5 {[%emt 0:00:17]} f6 {[%emt 0:00:16]} 18. Nc4 {[%emt 0:00:11]} Bb4 {[%emt 0:02:14]} 19. Be3 {[%emt 0:01:15]} h5 {[%emt 0:01:17]} 20. a3 {[%emt 0:00:10]} Be7 {[%emt 0:00:05]} 21. Nbd2 {[%emt 0:01:01]} hxg4 {[%emt 0:01:01]} 22. hxg4 {[%emt 0:00:03]} Rh4 {[%emt 0:00:09]} 23. Rg1 {[%emt 0:00:34]} Rc8 {[%emt 0:00:22]} 24. Rac1 {[%emt 0:01:14]} b5 {[%emt 0:00:40]} 25. Na5 {[%emt 0:00:30]} Rxc1 {[%emt 0:00:32]} 26. Rf1 {[%emt 0:08:45]} Re1+ 27. Rxe1 {[%emt 0:00:00]} Rxg4 {[%emt 0:00:17]} 28. Rc1 {[%emt 0:00:00]} 0-1

[Event "13th All African Mixed Team Rapid-ch 202"]
[Site "Accra"]
[Date "2024.03.09"]
[Round "1.3"]
[White "Rongwane, Gomolemo"]
[Black "Arab, Adlane"]
[Result "0-1"]
[ECO "E15"]
[WhiteElo "2021"]
[BlackElo "2477"]
[Annotator "TA"]
[PlyCount "66"]
[EventDate "2024.03.07"]
[EventType "rapid"]
[EventCountry "GHA"]
[SourceTitle "playchess.com"]
[Source "ChessBase"]
[SourceQuality "1"]
[TimeControl "900+10"]

{[%evp 20,66,16,2,12,-9,25,0,-11,-6,36,-62,-7,-93,-99,-91,-102,-129,-133,-185,-197,-193,-201,-201,-200,-191,-192,-209,-61,-250,0,-187,0,-206,-181,-215,-210,-221,-220,-192,-184,-209,-214,-311,-308,-656,-654,-650,-648]} 1. d4 {[%emt 0:00:03]} Nf6 {[%emt 0:00:02]} 2. Nf3 {[%emt 0:00:04]} d5 {[%emt 0:00:04]} 3. c4 {[%emt 0:00:05]} e6 {[%emt 0:00:07]} 4. g3 {[%emt 0:00:43]} Bb4+ {[%emt 0:00:12]} 5. Bd2 {[%emt 0:00:11]} Be7 {[%emt 0:00:03]} 6. Bg2 {[%emt 0:00:03]} O-O {[%emt 0:00:07]} 7. O-O {[%emt 0:00:04]} Nbd7 {[%emt 0:00:05]} 8. Qc2 {[%emt 0:00:17]} c6 {[%emt 0:00:07]} 9. Rd1 {[%emt 0:00:13]} b6 {[%emt 0:00:07]} 10. a4 {[%emt 0:00:15]} Ba6 {[%emt 0:00:29]} 11. b3 {[%emt 0:00:56][%cal Bb2b3,Bb3b4][%mdl 32]} c5 {[%emt 0:00:28]} 12. dxc5 {[%emt 0:00:15]} Bxc5 {[%emt 0:00:24]} 13. b4 {[%emt 0:00:54]} Be7 {[%emt 0:00:06] The position is equal.} 14. cxd5 {[%emt 0:00:13]} Bxe2 {[%emt 0:00:29]} 15. Re1 {[%emt 0:00:20]} (15. dxe6 $1 $14 Rc8 (15... Bxd1 16. Qxd1 Ng4 17. exd7 $18) 16. Nc3 Bxd1 17. Rxd1 fxe6 18. Ng5) 15... Rc8 {[%emt 0:00:32]} (15... Bxf3 $15 16. Bxf3 Nxd5 (16... exd5 17. Na3 $11)) 16. Qb2 {[%emt 0:00:39]} (16. Nc3 $1 $11 {remains equal.} Bxf3 (16... Bxb4 17. dxe6 Bxf3 18. exd7 $18) 17. Bxf3) 16... Bxf3 $17 {[%emt 0:00:07]} 17. Bxf3 {[%emt 0:00:05]} Nxd5 {[%emt 0:00:04]} ({But not} 17... exd5 $6 18. Nc3 $11) 18. Ra3 {[%emt 0:01:44]} Bf6 $36 {[%emt 0:00:24][%mdl 2048] Black is really pushing.} 19. Qa2 {[%emt 0:00:07]} (19. Qb3 $17) 19... Ne5 $19 {[%emt 0:00:17][%cal Od5c3] Strongly threatening ...Nc3!} 20. Bg2 {[%emt 0:00:25]} Qd6 {[%emt 0:00:51]} 21. Rb3 {[%emt 0:11:04]} Rfd8 {[%emt 0:00:34]} 22. b5 {[%emt 0:00:00]} Nc4 {[%emt 0:00:28]} 23. Rd3 {[%emt 0:00:00]} Nb2 {[%emt 0:01:17]} (23... h5 $19 {Threatens to win with ...Ne5.} 24. Bc1 Qc5) 24. Rf3 $2 {[%emt 0:00:00] [#]} (24. Rb3 $1 $15) 24... Nc4 {[%emt 0:00:12]} 25. Rd3 {[%emt 0:00:00]} Ne5 {[%emt 0:00:07] A dynamic duo of knights.} 26. Rb3 {[%emt 0:00:00]} h6 {[%emt 0:00:05]} 27. h3 {[%emt 0:00:00]} Rc7 {[%emt 0:00:22]} 28. a5 {[%emt 0:00:00]} Rdc8 {[%emt 0:00:12]} 29. axb6 {[%emt 0:00:00]} axb6 {[%emt 0:00:01]} 30. Qa4 {[%emt 0:00:00]} Nc4 {[%emt 0:00:43]} 31. Rd3 {[%emt 0:00:00]} (31. Bc1 $142) 31... Nb2 {[%emt 0:00:04][%csl LRa4,LRd3]} 32. Bf4 $2 {[%emt 0:00:00] [#]} (32. Qa3 Qd7 33. Rf3) 32... Qxf4 {[%emt 0:00:22]} 33. gxf4 {[%emt 0:00:00]} Nxa4 {[%emt 0:00:02] Weighted Error Value: White=0.49/Black=0.42.  Loses game:     	White=1     	---        Mistake:       	White=5     	Black=2      Inaccurate:     	White=1     	Black=2      OK:         	White=5     	Black=8      Best:        	White=1     	Black=2} 0-1

[Event "13th All African Mixed Team Rapid-ch 202"]
[Site "Accra"]
[Date "2024.03.09"]
[Round "1.4"]
[White "Nassr, Lina"]
[Black "Banda Natalie Katlo"]
[Result "1-0"]
[ECO "D05"]
[WhiteElo "2080"]
[BlackElo "1772"]
[Annotator "RC"]
[PlyCount "123"]
[EventDate "2024.03.07"]
[EventType "rapid"]
[EventCountry "GHA"]
[SourceTitle "playchess.com"]
[Source "ChessBase"]
[SourceQuality "1"]
[TimeControl "900+10"]

1. d4 {[%emt 0:00:02]} d5 {[%emt 0:00:01]} 2. Nf3 {[%emt 0:00:02]} Nf6 {[%emt 0:00:02]} 3. e3 {[%emt 0:00:02]} e6 {[%emt 0:00:03]} 4. Bd3 {[%emt 0:00:02]} c5 {[%emt 0:00:06]} 5. b3 {[%emt 0:00:06]} Nc6 {[%emt 0:00:10]} 6. Bb2 {[%emt 0:00:05]} Bd6 {[%emt 0:00:28]} 7. dxc5 {[%emt 0:00:06]} Bxc5 {[%emt 0:00:02]} 8. a3 {[%emt 0:00:04]} b6 {[%emt 0:00:30]} 9. O-O {[%emt 0:01:15]} Bb7 {[%emt 0:00:21]} 10. Nbd2 {[%emt 0:00:25]} O-O {[%emt 0:00:24]} 11. b4 {[%emt 0:00:31]} Bd6 {[%emt 0:01:32]} 12. c4 {[%emt 0:01:00]} dxc4 {[%emt 0:01:39]} 13. Nxc4 {[%emt 0:00:17]} Be7 {[%emt 0:01:20]} 14. Qc2 {[%emt 0:00:32]} h6 {[%emt 0:01:05]} 15. Rfd1 {[%emt 0:00:08]} Qc8 {[%emt 0:00:24]} 16. Rac1 {[%emt 0:00:26]} b5 {[%emt 0:01:57]} 17. Ncd2 {[%emt 0:00:42]} a6 {[%emt 0:00:06]} 18. Ne4 {[%emt 0:01:30]} Nd5 {[%emt 0:01:24]} 19. Nc5 {[%emt 0:01:35]} Bxc5 {[%emt 0:01:31]} 20. Qxc5 {[%emt 0:00:03]} Nde7 {[%emt 0:01:16]} 21. Ne5 {[%emt 0:01:59]} Rd8 {[%emt 0:01:21]} 22. Nf3 {[%emt 0:01:39]} Rd5 {[%emt 0:00:49]} 23. Qc3 {[%emt 0:00:04]} Qf8 {[%emt 0:00:08]} 24. Be4 {[%emt 0:00:46]} Rdd8 {[%emt 0:00:09]} 25. Ne5 {[%emt 0:01:05]} f6 {[%emt 0:02:14]} 26. Nxc6 {[%emt 0:01:52]} Bxc6 {[%emt 0:00:13]} 27. Bxc6 {[%emt 0:00:38]} Rac8 {[%emt 0:00:08]} 28. Rxd8 {[%emt 0:00:31]} Qxd8 {[%emt 0:00:01]} 29. Qb3 {[%emt 0:00:36]} Nxc6 {[%emt 0:00:20]} 30. Qxe6+ {[%emt 0:00:03]} Kf8 {[%emt 0:00:06]} 31. h3 {[%emt 0:00:11]} Qe8 {[%emt 0:00:14]} 32. Qd6+ {[%emt 0:00:19]} Ne7 {[%emt 0:00:15]} 33. Qxa6 {[%emt 0:00:33]} Rxc1+ {[%emt 0:00:03]} 34. Bxc1 {[%emt 0:00:01]} Qd7 {[%emt 0:00:06]} 35. Bb2 {[%emt 0:00:36]} Kf7 {[%emt 0:00:13]} 36. Bd4 {[%emt 0:00:08]} Nf5 {[%emt 0:00:15]} 37. Qb6 {[%emt 0:00:41]} Nd6 {[%emt 0:00:05]} 38. Qb8 {[%emt 0:00:30]} Nf5 {[%emt 0:00:15]} 39. Bc5 {[%emt 0:00:11]} Kg6 {[%emt 0:00:09]} 40. Qf4 {[%emt 0:00:08]} Kf7 {[%emt 0:00:08]} 41. e4 {[%emt 0:00:10]} Ne7 {[%emt 0:00:09]} 42. Bxe7 {[%emt 0:00:10]} Kxe7 {[%emt 0:00:03]} 43. Qg4 {[%emt 0:00:12]} Qxg4 {[%emt 0:00:15]} 44. hxg4 {[%emt 0:00:01]} Kd6 {[%emt 0:00:03]} 45. f3 {[%emt 0:00:15]} Ke5 {[%emt 0:00:17]} 46. Kf2 {[%emt 0:00:01]} Kd4 {[%emt 0:00:04]} 47. Ke2 {[%emt 0:00:03]} g5 {[%emt 0:00:03]} 48. g3 {[%emt 0:00:10]} Kc4 {[%emt 0:00:26]} 49. f4 {[%emt 0:00:20]} Kd4 {[%emt 0:00:10]} 50. Kf3 {[%emt 0:00:02]} Kc4 {[%emt 0:00:11]} 51. Ke3 {[%emt 0:00:08]} Kb3 {[%emt 0:00:09]} 52. e5 {[%emt 0:00:02]} fxe5 {[%emt 0:00:03]} 53. fxe5 {[%emt 0:00:01]} Kxa3 {[%emt 0:00:02]} 54. e6 {[%emt 0:00:01]} Kxb4 {[%emt 0:00:02]} 55. e7 {[%emt 0:00:01]} Ka3 {[%emt 0:00:02]} 56. e8=Q {[%emt 0:00:03]} b4 {[%emt 0:00:01]} 57. Qa8+ {[%emt 0:00:03]} Kb2 {[%emt 0:00:01]} 58. Kd2 {[%emt 0:00:11]} b3 {[%emt 0:00:07]} 59. Qh8+ {[%emt 0:00:15]} Ka2 {[%emt 0:00:07]} 60. Kc1 {[%emt 0:00:07]} Ka3 {[%emt 0:00:11]} 61. Qa1+ {[%emt 0:00:13]} Kb4 {[%emt 0:00:01]} 62. Kb2 {[%emt 0:00:01]} 1-0

[Event "13th All African Mixed Team Rapid-ch 202"]
[Site "Accra"]
[Date "2024.03.09"]
[Round "1.5"]
[White "Silva, David"]
[Black "Oluka Robert Mcligeyo"]
[Result "1-0"]
[ECO "B22"]
[WhiteElo "2358"]
[BlackElo "2041"]
[Annotator "TA"]
[PlyCount "65"]
[EventDate "2024.03.07"]
[EventType "rapid"]
[EventCountry "GHA"]
[SourceTitle "playchess.com"]
[Source "ChessBase"]
[SourceQuality "1"]
[TimeControl "900+10"]

{[%evp 20,65,71,34,58,56,41,42,50,41,83,73,64,74,68,25,35,20,25,31,51,53,66,70,58,41,23,12,38,32,12,0,0,0,0,0,0,0,0,0,0,0,515,516,516,-8,542,542]} 1. e4 {[%emt 0:00:02]} c5 {[%emt 0:00:41]} 2. c3 {[%emt 0:00:02]} Nf6 {[%emt 0:00:10]} 3. e5 {[%emt 0:00:01]} Nd5 {[%emt 0:00:01]} 4. d4 {[%emt 0:00:03]} cxd4 {[%emt 0:00:01]} 5. Nf3 {[%emt 0:00:02]} Nc6 {[%emt 0:00:01]} 6. cxd4 {[%emt 0:00:05]} d6 {[%emt 0:00:06]} 7. Bc4 {[%emt 0:00:03]} e6 {[%emt 0:00:35]} 8. O-O {[%emt 0:00:04]} Be7 {[%emt 0:00:22]} 9. Qe2 {[%emt 0:00:06]} Nb6 {[%emt 0:00:09]} 10. Bd3 {[%emt 0:00:24]} O-O {[%emt 0:00:34]} 11. a3 {[%emt 0:00:16] White is more active.} dxe5 {[%emt 0:00:03]} 12. dxe5 {[%emt 0:00:01]} Nd4 {[%emt 0:00:47]} 13. Nxd4 {[%emt 0:00:03]} Qxd4 {[%emt 0:00:02] White is slightly better.} 14. Rd1 {[%emt 0:00:02][%cal Od3h7]} Qh4 {[%emt 0:00:50]} 15. Nc3 {[%emt 0:00:17]} Bd7 {[%emt 0:00:23][%cal Bc8d7,Bd7c6,Bc6e4][%mdl 32]} 16. Be4 {[%emt 0:00:30][%cal Oc1e3] Threatens to win with Be3!} Bc6 {[%emt 0:00:22]} 17. Rd3 {[%emt 0:00:40] aiming for Rh3.} Bxe4 {[%emt 0:02:08]} 18. Rh3 {[%emt 0:02:44]} ({Much weaker is} 18. Qxe4 Qxe4 19. Nxe4 Nc4 $15) 18... Qxh3 {[%emt 0:00:01]} 19. gxh3 {[%emt 0:00:00]} Bg6 {[%emt 0:00:01]} 20. Be3 {[%emt 0:00:02]} Rac8 {[%emt 0:00:01]} 21. Bxb6 {[%emt 0:00:03]} axb6 {[%emt 0:00:01]} 22. Qf3 {[%emt 0:00:19]} Rc7 {[%emt 0:02:09]} 23. Rd1 {[%emt 0:00:05]} h6 {[%emt 0:00:23]} 24. a4 {[%emt 0:01:18]} Bb4 {[%emt 0:01:08]} 25. Rd4 {[%emt 0:04:32]} Bxc3 {[%emt 0:00:49]} 26. bxc3 {[%emt 0:00:01]} Rfc8 {[%emt 0:00:01][%cal Og8h7]} 27. h4 {[%emt 0:00:22]} Rxc3 {[%emt 0:02:24]} 28. Qxb7 {[%emt 0:00:13]} Rc1+ {[%emt 0:01:41]} 29. Kg2 {[%emt 0:00:03]} R8c4 {[%emt 0:01:09]} 30. Qxb6 {[%emt 0:03:55] Black must now prevent Rxc4.} Be4+ $2 {[%emt 0:00:01][%mdl 8192] [#]} (30... R4c3 $11) 31. Rxe4 $1 $18 {[%emt 0:00:09][%mdl 512]} Rxe4 {[%emt 0:03:16] [#]} 32. Qd8+ $1 {[%emt 0:00:02]} Kh7 {[%emt 0:00:00] [#]} 33. Qd3 $1 {[%emt 0:00:03] Weighted Error Value: White=0.06 (flawless) /Black=0.32.  Loses game:     	---       	Black=2      Inaccurate:     	White=1     	Black=1      OK:         	White=4     	Black=10     Best:        	White=3     	Black=3      Strong:       	White=2     	---        Brilliant:      	White=1     	---} 1-0

[Event "13th All African Mixed Team Rapid-ch 202"]
[Site "Accra"]
[Date "2024.03.09"]
[Round "1.6"]
[White "Mongeli, Sasha"]
[Black "Junior, Ednasia"]
[Result "1/2-1/2"]
[ECO "E17"]
[WhiteElo "1858"]
[BlackElo "1915"]
[Annotator "RC"]
[PlyCount "114"]
[EventDate "2024.03.07"]
[EventType "rapid"]
[EventCountry "GHA"]
[SourceTitle "playchess.com"]
[Source "ChessBase"]
[SourceQuality "1"]
[TimeControl "900+10"]

1. d4 {[%emt 0:00:20]} Nf6 {[%emt 0:00:02]} 2. Nf3 {[%emt 0:00:10]} b6 {[%emt 0:00:05]} 3. g3 {[%emt 0:00:06]} Bb7 {[%emt 0:00:02]} 4. Bg2 {[%emt 0:00:02]} e6 {[%emt 0:00:02]} 5. O-O {[%emt 0:00:06]} Be7 {[%emt 0:00:03]} 6. c4 {[%emt 0:00:09]} O-O {[%emt 0:00:03]} 7. Nc3 {[%emt 0:00:03]} d6 {[%emt 0:00:30]} 8. b3 {[%emt 0:00:27]} Nbd7 {[%emt 0:00:16]} 9. Bb2 {[%emt 0:00:06]} Ne4 {[%emt 0:00:14]} 10. Rc1 {[%emt 0:01:23]} Ndf6 {[%emt 0:00:20]} 11. Nxe4 {[%emt 0:00:27]} Nxe4 {[%emt 0:01:41]} 12. Nd2 {[%emt 0:00:35]} Nxd2 {[%emt 0:01:06]} 13. Qxd2 {[%emt 0:00:33]} Bxg2 {[%emt 0:00:11]} 14. Kxg2 {[%emt 0:00:02]} f5 {[%emt 0:02:37]} 15. Rce1 {[%emt 0:02:15]} Qe8 {[%emt 0:02:08]} 16. d5 {[%emt 0:02:56]} e5 {[%emt 0:02:20]} 17. f4 {[%emt 0:00:49]} e4 {[%emt 0:02:49]} 18. e3 {[%emt 0:00:14]} Qg6 {[%emt 0:00:24]} 19. Rg1 {[%emt 0:01:29]} h5 {[%emt 0:00:25]} 20. Kf1 {[%emt 0:00:38]} Bf6 {[%emt 0:00:40]} 21. Rb1 {[%emt 0:00:43]} a5 {[%emt 0:00:16]} 22. a4 {[%emt 0:00:09]} Qg4 {[%emt 0:00:10]} 23. Qe2 {[%emt 0:00:51]} Kf7 {[%emt 0:00:09]} 24. Ke1 {[%emt 0:00:59]} Rh8 {[%emt 0:00:15]} 25. h4 {[%emt 0:00:33]} Qg6 {[%emt 0:00:33]} 26. Rg2 {[%emt 0:03:25]} Rhd8 {[%emt 0:00:11]} 27. Kf1 {[%emt 0:00:00]} Qh7 {[%emt 0:00:10]} 28. Qc2 {[%emt 0:00:00]} g6 {[%emt 0:00:10]} 29. Bxf6 {[%emt 0:00:00]} Kxf6 {[%emt 0:00:01]} 30. Qb2+ {[%emt 0:00:00]} Kf7 {[%emt 0:00:01]} 31. Rd1 {[%emt 0:00:00]} Qg7 {[%emt 0:00:36]} 32. Qxg7+ {[%emt 0:00:00]} Kxg7 {[%emt 0:00:02]} 33. Rgd2 {[%emt 0:00:00]} Kf7 {[%emt 0:00:04]} 34. Kf2 {[%emt 0:00:00]} Ke7 {[%emt 0:00:00]} 35. Rd4 {[%emt 0:00:00]} Rac8 {[%emt 0:00:12]} 36. R1d2 {[%emt 0:00:00]} c6 {[%emt 0:00:16]} 37. dxc6 {[%emt 0:00:00]} Rxc6 {[%emt 0:00:08]} 38. Rd5 {[%emt 0:00:00]} Rc5 {[%emt 0:00:29]} 39. Ke2 {[%emt 0:00:00]} Rxd5 {[%emt 0:00:24]} 40. Rxd5 {[%emt 0:00:00]} Rc8 {[%emt 0:00:01]} 41. Rb5 {[%emt 0:00:03]} Rc6 {[%emt 0:00:08]} 42. Kd2 {[%emt 0:00:09]} Kd7 {[%emt 0:00:56]} 43. Kc3 {[%emt 0:00:06]} Ke7 {[%emt 0:00:28]} 44. Kc2 {[%emt 0:00:50]} Kd7 {[%emt 0:00:19]} 45. Kc3 {[%emt 0:00:03]} Ke7 {[%emt 0:00:09]} 46. Kd4 {[%emt 0:00:21]} Ke6 {[%emt 0:00:04]} 47. Kc3 {[%emt 0:00:08]} Kd7 {[%emt 0:00:08]} 48. Kc2 {[%emt 0:00:45]} Ke7 {[%emt 0:00:02]} 49. Kd2 {[%emt 0:00:03]} Kd7 {[%emt 0:00:07]} 50. Kc3 {[%emt 0:00:04]} Ke7 {[%emt 0:00:02]} 51. b4 {[%emt 0:00:10]} axb4+ {[%emt 0:00:04]} 52. Kxb4 {[%emt 0:00:02]} Kd7 {[%emt 0:00:05]} 53. Rd5 {[%emt 0:00:12]} Kc7 {[%emt 0:00:30]} 54. Rb5 {[%emt 0:00:34]} Kd7 {[%emt 0:00:20]} 55. Rd5 {[%emt 0:00:24]} Kc7 {[%emt 0:00:20]} 56. Rb5 {[%emt 0:00:07]} Kd7 {[%emt 0:00:08]} 57. Rd5 {[%emt 0:00:24]} Kc7 {[%emt 0:00:21]} 1/2-1/2

[Event "13th All African Mixed Team Rapid-ch 202"]
[Site "Accra"]
[Date "2024.03.09"]
[Round "1.7"]
[White "Pereira, Sergio Murilo de Ara"]
[Black "KIGIGHA, Bomo Lovet"]
[Result "0-1"]
[ECO "B01"]
[WhiteElo "2115"]
[BlackElo "2231"]
[Annotator "TA"]
[PlyCount "26"]
[EventDate "2024.03.07"]
[EventType "rapid"]
[EventCountry "GHA"]
[SourceTitle "playchess.com"]
[Source "ChessBase"]
[SourceQuality "1"]
[TimeControl "900+10"]

{[%evp 9,26,45,89,80,1238,83,65,15,24,15,37,33,18,-22,1406,-6,-6,-6,8]} 1. e4 {[%emt 0:00:02]} d5 {[%emt 0:00:02]} 2. exd5 {[%emt 0:00:03]} Qd7 {[%emt 0:15:28]} 3. d6 Qxd6 {[%emt 0:00:00]} 4. Nc3 {[%emt 0:00:14]} Qd5 {[%emt 0:00:00]} 5. Rb1 {[%emt 0:00:21]} Qa5 {[%emt 0:00:00]} 6. b4 {[%emt 0:00:47]} c6 $2 {[%emt 0:00:00][%mdl 8192] [#]} 7. Nf3 $2 {[%emt 0:00:22]} (7. bxa5 $18 Nf6 8. Ba3) 7... Qc7 $16 {[%emt 0:00:00]} 8. Bc4 {[%emt 0:01:45]} ({White should play} 8. d4 $14) 8... Nf6 {[%emt 0:00:00]} 9. O-O {[%emt 0:00:33]} Bf5 {[%emt 0:00:00]} 10. b5 {[%emt 0:01:35]} e6 {[%emt 0:00:00]} 11. bxc6 {[%emt 0:00:33]} Be7 $2 {[%emt 0:00:00][%mdl 8192] [#]} (11... Nxc6 $11 12. Nb5 Qd7) 12. Bb5 $2 (12. cxb7 $18 Qc6 13. Ne5 (13. bxa8=R Qxa8 14. Nd4 Bg4 $18)) 12... Nxc6 $11 {[%emt 0:00:00]} 13. Bxc6+ {[%emt 0:00:36]} Qxc6 {[%emt 0:00:00][%mdl 32768] Weighted Error Value: White=1.54/Black=0.18 (very precise) .  Loses game:     	---       	Black=2      Missed win:     	White=2     	---        Inaccurate:     	White=1     	---        OK:         	---       	Black=3     . Loss on time!?} 0-1